bitfinex/quotes_BTCUSD_20240811
["timestamp","ask_amount","ask_price","bid_price","bid_amount"]
[1723386190970,0.00093,60669.0,60668.0,2.61024809]
[1723386191138,0.00093,60669.0,60668.0,2.61224809]
[1723386191349,0.00093,60669.0,60668.0,2.60924731]
[1723386191751,0.00193,60669.0,60668.0,2.62124731]
[1723386191904,0.00193,60669.0,60668.0,2.69614731]
[1723386192101,0.00193,60669.0,60668.0,2.70814731]
[1723386192487,0.00193,60669.0,60668.0,2.70814715]
[1723386192938,0.00193,60669.0,60668.0,2.70614715]
[1723386193139,0.00193,60669.0,60668.0,2.51779477]
[1723386193792,0.00193,60669.0,60668.0,2.5177961]
[1723386194064,0.00193,60669.0,60668.0,2.6361961]
[1723386194702,0.00193,60669.0,60668.0,2.38980466]
[1723386195479,0.00193,60669.0,60668.0,2.43888138]
[1723386195698,0.00193,60669.0,60668.0,2.24097528]
[1723386196173,0.00193,60669.0,60668.0,2.32137528]
[1723386197063,0.00193,60669.0,60668.0,2.31237528]
[1723386197538,0.00193,60669.0,60668.0,2.43888654]
[1723386197946,0.00193,60669.0,60668.0,2.43889049]
[1723386198609,0.00193,60669.0,60668.0,2.60270541]
[1723386199007,0.0083,60680.0,60679.0,1.189749]
[1723386199241,0.0083,60680.0,60679.0,2.28212427]
[1723386199555,0.0083,60680.0,60679.0,2.51284627]
[1723386200165,0.0083,60680.0,60679.0,2.50384627]
[1723386200483,0.0083,60680.0,60679.0,2.56820546]
[1723386200707,0.0083,60680.0,60679.0,2.57020546]
[1723386200864,0.0083,60680.0,60679.0,2.58020546]
[1723386201339,0.0093,60680.0,60679.0,2.59020546]
[1723386201564,0.0093,60680.0,60679.0,2.39598592]
[1723386201813,0.0093,60680.0,60679.0,2.16215874]
[1723386202013,0.0083,60680.0,60679.0,1.94049572]
[1723386202222,0.0093,60680.0,60679.0,1.953497]
[1723386202412,0.0093,60680.0,60679.0,1.722775]
[1723386202574,0.0093,60680.0,60679.0,1.642375]
[1723386202777,0.0093,60680.0,60679.0,1.52286451]
[1723386203150,0.0093,60680.0,60679.0,1.53286451]
[1723386203408,0.0093,60680.0,60679.0,1.45776451]
[1723386203609,0.0083,60680.0,60679.0,1.44776451]
[1723386203808,0.0083,60680.0,60679.0,1.45676451]
[1723386204213,0.0083,60680.0,60679.0,1.21704251]
[1723386204420,0.0083,60680.0,60679.0,1.23204251]
[1723386204823,0.0083,60680.0,60679.0,1.22304251]
[1723386205028,0.0083,60680.0,60679.0,1.086205]
[1723386205205,0.0083,60680.0,60679.0,1.22805776]
[1723386205965,0.0083,60680.0,60679.0,1.45877976]
[1723386206600,0.0083,60680.0,60679.0,1.22805776]
[1723386207907,0.0083,60680.0,60679.0,1.45877976]
[1723386208127,0.0083,60680.0,60679.0,1.22805776]
[1723386208529,0.0083,60680.0,60679.0,1.091205]
[1723386208731,0.0083,60680.0,60679.0,1.22805909]
[1723386212634,0.0083,60680.0,60679.0,1.091205]
[1723386212836,0.0083,60680.0,60679.0,1.45878066]
[1723386213035,0.0083,60680.0,60679.0,1.22805866]
[1723386213298,0.0083,60680.0,60679.0,1.45878066]
[1723386213897,0.0083,60680.0,60679.0,1.321927]
[1723386214227,0.0083,60680.0,60679.0,1.45878066]
[1723386215825,0.0083,60680.0,60679.0,1.45878023]
[1723386216933,0.0083,60680.0,60679.0,1.321927]
[1723386217132,0.0083,60680.0,60679.0,1.45878044]
[1723386219095,0.0083,60680.0,60679.0,1.59838044]
[1723386219589,0.0083,60680.0,60679.0,1.58938044]
[1723386219782,0.0083,60680.0,60679.0,1.59838044]
[1723386220159,0.0083,60680.0,60679.0,1.58938044]
[1723386220380,0.0083,60680.0,60679.0,1.76219536]
[1723386220720,0.0083,60680.0,60679.0,2.29819753]
[1723386220868,0.0083,60680.0,60679.0,2.46025253]
[1723386221084,0.0083,60680.0,60679.0,2.46925253]
[1723386221653,0.0083,60680.0,60679.0,1.89571561]
[1723386221861,0.0083,60680.0,60679.0,1.80366061]
[1723386222237,0.0083,60680.0,60679.0,1.97471537]
[1723386222440,0.0083,60680.0,60679.0,1.97471469]
[1723386222668,0.0083,60680.0,60679.0,1.59838044]
[1723386223000,0.0083,60680.0,60679.0,1.72463745]
[1723386223380,0.0083,60680.0,60679.0,1.51937118]
[1723386223583,0.0083,60680.0,60679.0,1.51937227]
[1723386223791,0.0083,60680.0,60679.0,1.44977227]
[1723386224452,0.0083,60680.0,60679.0,1.45877227]
[1723386224652,0.0083,60680.0,60679.0,1.66404018]
[1723386224919,0.0083,60680.0,60679.0,1.45877227]
[1723386225250,0.0083,60680.0,60679.0,1.66404018]
[1723386225448,0.0083,60680.0,60679.0,1.45377227]
[1723386225951,0.0083,60680.0,60679.0,1.66504018]
[1723386226156,0.0083,60680.0,60679.0,1.45377227]
[1723386226579,0.0083,60680.0,60679.0,1.66604047]
[1723386226756,0.0083,60680.0,60679.0,1.46077239]
[1723386227163,0.0083,60680.0,60679.0,1.66604047]
[1723386227511,0.0083,60680.0,60679.0,1.46077239]
[1723386228255,0.0083,60680.0,60679.0,1.72337943]
[1723386228403,0.0083,60680.0,60679.0,1.66604047]
[1723386229976,0.0083,60680.0,60679.0,1.323927]
[1723386230173,0.0083,60680.0,60679.0,1.66604046]
[1723386230719,0.0083,60680.0,60679.0,1.97929723]
[1723386232456,0.0083,60680.0,60679.0,1.97329723]
[1723386232821,0.0083,60680.0,60679.0,1.98229723]
[1723386233135,0.0083,60680.0,60679.0,2.21301923]
[1723386233350,0.0083,60680.0,60679.0,1.97529723]
[1723386233551,0.0083,60680.0,60679.0,1.66739124]
[1723386233777,0.0083,60680.0,60679.0,1.98528759]
[1723386233996,0.0083,60680.0,60679.0,1.97628759]
[1723386234254,0.0083,60680.0,60679.0,2.14910278]
[1723386234754,0.0083,60680.0,60679.0,2.14010278]
[1723386234865,0.0083,60680.0,60679.0,1.90398786]
[1723386235313,0.0083,60680.0,60679.0,1.67203406]
[1723386236615,0.0083,60680.0,60679.0,1.72936064]
[1723386236815,0.0083,60680.0,60679.0,1.67203406]
[1723386237531,0.0083,60680.0,60679.0,1.67204863]
[1723386238119,0.0083,60680.0,60679.0,1.67204883]
[1723386238338,0.0083,60680.0,60679.0,1.29338114]
[1723386238491,0.0083,60680.0,60679.0,1.23605373]
[1723386238950,0.0083,60680.0,60679.0,1.23606049]
[1723386239382,0.0083,60680.0,60679.0,1.46678249]
[1723386239806,0.0083,60680.0,60679.0,1.45778249]
[1723386240030,0.0083,60680.0,60679.0,1.46678249]
[1723386240809,0.0083,60680.0,60679.0,1.45778206]
[1723386241401,0.0083,60680.0,60679.0,1.46678206]
[1723386243661,0.0083,60680.0,60679.0,1.099205]
[1723386243834,0.0083,60680.0,60679.0,1.23606006]
[1723386244034,0.0083,60680.0,60679.0,1.46678206]
[1723386244259,0.0083,60680.0,60679.0,1.46678281]
[1723386244390,0.0083,60680.0,60679.0,1.23606081]
[1723386245072,0.0083,60680.0,60679.0,1.46678281]
[1723386245352,0.0083,60680.0,60679.0,1.23606081]
[1723386245552,0.0083,60680.0,60679.0,1.46678281]
[1723386245777,0.0083,60680.0,60679.0,1.23606081]
[1723386246315,0.0083,60680.0,60679.0,1.46678281]
[1723386246523,0.0083,60680.0,60679.0,1.23606081]
[1723386247359,0.0083,60680.0,60679.0,1.23606137]
[1723386248107,0.1465,60680.0,60679.0,1.00533937]
[1723386248307,0.1465,60680.0,60679.0,0.77461737]
[1723386248712,0.1465,60680.0,60679.0,1.00533937]
[1723386249091,0.1465,60680.0,60679.0,1.23606137]
[1723386249700,0.0877,60680.0,60679.0,1.23606137]
[1723386250446,0.0877,60680.0,60679.0,1.00533937]
[1723386251631,0.0877,60680.0,60679.0,0.868483]
[1723386251853,0.0877,60680.0,60679.0,1.0053464]
[1723386252544,0.0877,60680.0,60679.0,0.7746244]
[1723386252770,0.0877,60680.0,60679.0,1.0053464]
[1723386254698,0.0877,60680.0,60679.0,0.77462499]
[1723386255124,0.0877,60680.0,60679.0,0.628761]
[1723386255322,0.0877,60680.0,60679.0,0.7656256]
[1723386255669,0.0877,60680.0,60679.0,0.9963476]
[1723386255869,0.0877,60680.0,60679.0,0.7656256]
[1723386256067,0.0877,60680.0,60679.0,0.7556256]
[1723386256274,0.0877,60680.0,60679.0,0.7466256]
[1723386256473,0.0877,60680.0,60679.0,0.98234699]
[1723386256716,0.0877,60680.0,60679.0,0.75162499]
[1723386257088,0.0877,60680.0,60679.0,0.98234699]
[1723386258089,0.0877,60680.0,60679.0,0.98834699]
[1723386258291,0.0877,60680.0,60679.0,0.98834672]
[1723386259132,0.0877,60680.0,60679.0,0.75762472]
[1723386260920,0.36687392,60680.0,60679.0,0.5054]
[1723386261147,0.65639192,60680.0,60679.0,0.5054]
[1723386261321,1.12782792,60680.0,60679.0,0.5054]
[1723386261537,1.21297247,60680.0,60679.0,0.5054]
[1723386261735,1.12782792,60680.0,60679.0,0.4994]
[1723386261921,1.13882792,60680.0,60679.0,0.4994]
[1723386262115,1.13882792,60680.0,60679.0,0.5004]
[1723386262116,2.50408732,60680.0,60679.0,0.5004]
[1723386262375,2.50408732,60680.0,60679.0,0.4994]
[1723386262376,2.50308732,60680.0,60679.0,0.4994]
[1723386262576,2.40422792,60680.0,60679.0,0.4944]
[1723386262785,2.40422792,60680.0,60679.0,0.4964]
[1723386262988,2.40522792,60680.0,60679.0,0.4964]
[1723386263189,2.50422792,60680.0,60679.0,0.4944]
[1723386263391,2.68192266,60680.0,60679.0,0.4944]
[1723386263622,2.68192266,60680.0,60679.0,0.4954]
[1723386263794,2.56798206,60680.0,60679.0,0.4954]
[1723386263994,2.56798206,60680.0,60679.0,0.4944]
[1723386264204,2.69140169,60680.0,60679.0,0.4944]
[1723386264428,2.69140169,60680.0,60679.0,0.4954]
[1723386264597,2.69240169,60680.0,60679.0,0.4964]
[1723386264962,2.69240169,60680.0,60679.0,0.4954]
[1723386264963,2.69340169,60680.0,60679.0,0.4954]
[1723386265081,2.31726406,60680.0,60679.0,0.4964]
[1723386265281,2.33717259,60680.0,60679.0,0.4964]
[1723386265482,0.64694153,60680.0,60679.0,0.4944]
[1723386265690,0.0083,60680.0,60679.0,0.909583]
[1723386265900,0.0083,60680.0,60679.0,0.757261]
[1723386265901,0.0093,60680.0,60679.0,0.757261]
[1723386266123,0.0083,60680.0,60679.0,1.12384778]
[1723386266346,0.0093,60680.0,60679.0,1.12384778]
[1723386266840,0.0093,60680.0,60679.0,1.12384339]
[1723386267757,0.0083,60680.0,60679.0,1.12284339]
[1723386268291,0.0093,60680.0,60679.0,1.35356539]
[1723386268496,0.0093,60680.0,60679.0,1.3535648]
[1723386269218,0.0093,60680.0,60679.0,1.3445648]
[1723386269973,0.0093,60680.0,60679.0,1.3535648]
[1723386271082,0.0093,60680.0,60679.0,1.5842868]
[1723386272094,0.0093,60680.0,60679.0,1.5752868]
[1723386272295,0.0093,60680.0,60679.0,1.57528661]
[1723386272721,0.0093,60680.0,60679.0,1.57528662]
[1723386273040,0.0093,60680.0,60679.0,1.58428662]
[1723386273678,0.0093,60680.0,60679.0,1.57828662]
[1723386274125,0.0093,60680.0,60679.0,1.58728662]
[1723386274328,0.0083,60680.0,60679.0,1.58728662]
[1723386274753,0.0083,60680.0,60679.0,1.36056462]
[1723386275505,0.0083,60680.0,60679.0,1.35356462]
[1723386275706,0.0083,60680.0,60679.0,1.35656462]
[1723386275912,0.0083,60680.0,60679.0,1.35856462]
[1723386276589,0.0083,60680.0,60679.0,0.64525962]
[1723386276809,0.0083,60680.0,60679.0,0.63625962]
[1723386276999,0.0083,60680.0,60679.0,0.4994]
[1723386277000,0.123659,60680.0,60679.0,0.4994]
[1723386277424,0.51819192,60680.0,60679.0,0.4994]
[1723386277629,0.83110992,60680.0,60679.0,0.4964]
[1723386277837,0.83110992,60680.0,60679.0,0.4944]
[1723386278037,0.83110992,60680.0,60679.0,0.4964]
[1723386278237,0.84110992,60680.0,60679.0,0.4954]
[1723386278605,1.07182792,60680.0,60679.0,0.4954]
[1723386278805,1.18098004,60680.0,60679.0,0.4944]
[1723386279011,1.21565611,60680.0,60679.0,0.4944]
[1723386279221,3.47993348,60680.0,60679.0,0.4944]
[1723386279430,0.65909,60670.0,60668.0,0.000913]
[1723386279620,1.11246092,60670.0,60668.0,0.000913]
[1723386279821,0.88170492,60670.0,60668.0,0.000913]
[1723386280270,0.36139292,60670.0,60668.0,0.000913]
[1723386280463,0.14064646,60676.0,60668.0,0.009913]
[1723386280464,0.0822,60674.0,60668.0,0.009913]
[1723386280611,0.115378,60670.0,60669.0,0.4953941]
[1723386280816,0.346134,60670.0,60669.0,0.4953941]
[1723386281224,0.115378,60670.0,60669.0,0.4953941]
[1723386281822,0.115378,60670.0,60669.0,0.4963941]
[1723386282031,0.115378,60670.0,60669.0,0.4953941]
[1723386282226,0.115376,60671.0,60669.0,0.5043941]
[1723386282479,0.001,60670.0,60669.0,0.4973941]
[1723386282911,0.001,60670.0,60669.0,0.5063941]
[1723386283107,0.001,60670.0,60669.0,0.5053941]
[1723386283281,0.001,60670.0,60669.0,0.4963941]
[1723386283439,0.116378,60670.0,60669.0,0.4963941]
[1723386284039,0.115378,60670.0,60669.0,0.4953941]
[1723386284238,0.115378,60670.0,60669.0,0.4963941]
[1723386284443,0.115378,60670.0,60669.0,0.4973941]
[1723386284646,0.115378,60670.0,60669.0,0.4963941]
[1723386284864,0.27918692,60673.0,60670.0,0.115377]
[1723386285086,0.27918692,60673.0,60671.0,0.49447]
[1723386285400,0.115374,60672.0,60671.0,0.49447]
[1723386285610,0.346122,60672.0,60671.0,0.49447]
[1723386286182,0.115374,60672.0,60671.0,0.49447]
[1723386286592,0.197574,60672.0,60671.0,0.49447]
[1723386286765,0.428322,60672.0,60671.0,0.49447]
[1723386287938,0.428322,60672.0,60671.0,0.49547]
[1723386288142,0.96353138,60672.0,60671.0,0.49547]
[1723386288308,1.19527938,60672.0,60671.0,0.49647]
[1723386288508,0.96453138,60672.0,60671.0,0.49647]
[1723386290315,1.21627938,60672.0,60671.0,0.49647]
[1723386290514,1.20527938,60672.0,60671.0,0.49647]
[1723386291196,3.42657708,60672.0,60671.0,0.49647]
[1723386291397,3.54957708,60672.0,60671.0,0.49647]
[1723386291615,3.6235481,60672.0,60671.0,0.49647]
[1723386291839,3.72699397,60672.0,60671.0,0.49647]
[1723386292367,3.72696844,60672.0,60671.0,0.49547]
[1723386292802,3.72596844,60672.0,60671.0,0.49447]
[1723386293001,3.72596878,60672.0,60671.0,0.49447]
[1723386293778,3.73096878,60672.0,60671.0,0.49547]
[1723386294012,3.73896878,60672.0,60671.0,0.49647]
[1723386294159,3.61570893,60672.0,60671.0,0.49647]
[1723386294366,3.66013588,60672.0,60671.0,0.49647]
[1723386295017,3.61573584,60672.0,60671.0,0.49647]
[1723386295415,3.73890521,60672.0,60671.0,0.49647]
[1723386296013,3.73890521,60672.0,60671.0,0.4973841]
[1723386296190,3.61573584,60672.0,60671.0,0.4973841]
[1723386296408,2.50719168,60672.0,60671.0,0.4973841]
[1723386296609,2.49128575,60672.0,60671.0,0.4973841]
[1723386296935,2.44203292,60672.0,60671.0,0.4973841]
[1723386297556,2.45303292,60672.0,60671.0,0.4973841]
[1723386297755,2.43203292,60672.0,60671.0,0.4973841]
[1723386298418,2.44203292,60672.0,60671.0,0.4973841]
[1723386298850,2.43203292,60672.0,60671.0,0.4973841]
[1723386299478,2.44203292,60672.0,60671.0,0.4973841]
[1723386300659,1.17663292,60672.0,60671.0,0.4973841]
[1723386301317,1.18763292,60672.0,60671.0,0.4973841]
[1723386301636,1.26943292,60672.0,60671.0,0.4973841]
[1723386302047,1.31867501,60672.0,60671.0,0.4973841]
[1723386302419,1.43358262,60672.0,60671.0,0.4973841]
[1723386302628,1.79541917,60672.0,60671.0,0.4973841]
[1723386302823,1.82004022,60672.0,60671.0,0.45669884]
[1723386303027,2.33617708,60672.0,60671.0,0.45669884]
[1723386303341,2.48964058,60672.0,60671.0,0.45669884]
[1723386303479,2.36653534,60672.0,60671.0,0.45669884]
[1723386303701,2.41569508,60672.0,60671.0,0.44031885]
[1723386303936,2.59228334,60672.0,60671.0,0.44031885]
[1723386304157,2.59247574,60672.0,60671.0,0.44131885]
[1723386304374,2.59247574,60672.0,60671.0,0.44031885]
[1723386304375,2.47949458,60672.0,60671.0,0.44031885]
[1723386304583,2.66007404,60672.0,60671.0,0.06784644]
[1723386304781,0.959312,60650.0,60639.0,0.0638]
[1723386305023,0.97172692,60650.0,60644.0,0.0816]
[1723386305244,0.011,60654.0,60644.0,0.0816]
[1723386305245,0.230819,60654.0,60649.0,0.073713]
[1723386305413,0.05924132,60660.0,60649.0,0.073713]
[1723386305414,0.115416,60650.0,60649.0,0.073713]
[1723386305633,0.115416,60650.0,60649.0,0.064713]
[1723386305769,0.115413,60652.0,60649.0,0.073713]
[1723386305970,0.115414,60651.0,60650.0,0.0816]
[1723386307203,0.115416,60650.0,60649.0,0.064713]
[1723386307414,0.51006292,60650.0,60649.0,0.064713]
[1723386307856,0.27923092,60650.0,60649.0,0.064713]
[1723386308024,0.115416,60650.0,60649.0,0.154113]
[1723386308229,0.230821,60653.0,60649.0,0.154113]
[1723386308230,0.115411,60653.0,60649.0,0.154113]
[1723386308411,0.011,60650.0,60649.0,0.145113]
[1723386308616,0.023,60650.0,60649.0,0.145113]
[1723386309527,0.011,60650.0,60649.0,0.154113]
[1723386309851,0.27922692,60652.0,60649.0,0.145113]
[1723386310029,0.115414,60651.0,60649.0,0.145113]
[1723386310372,0.115414,60651.0,60649.0,0.154113]
[1723386310748,0.006,60650.0,60649.0,0.009913]
[1723386310944,0.006,60650.0,60649.0,0.587003]
[1723386310945,0.011,60650.0,60649.0,0.587003]
[1723386311176,0.006,60650.0,60649.0,0.587003]
[1723386311345,0.115397,60660.0,60649.0,0.587003]
[1723386311346,0.115397,60660.0,60656.0,0.1429]
[1723386311545,0.16381492,60660.0,60657.0,0.009]
[1723386311775,0.27921192,60660.0,60657.0,0.009]
[1723386312101,0.16381492,60660.0,60658.0,0.1429]
[1723386312536,0.16381492,60660.0,60658.0,0.258301]
[1723386312747,0.230781,60664.0,60659.0,0.1429]
[1723386312915,0.64927154,60680.0,60670.0,0.009]
[1723386312916,0.5737562,60679.0,60670.0,0.009]
[1723386313117,0.115376,60671.0,60670.0,0.009]
[1723386313318,0.08267746,60672.0,60670.0,0.009]
[1723386313522,0.115376,60671.0,60670.0,0.009]
[1723386313897,0.115376,60671.0,60670.0,0.0894]
[1723386314097,0.115382,60668.0,60666.0,0.0804]
[1723386314515,0.115391,60663.0,60662.0,0.0625]
[1723386314693,0.27920592,60663.0,60662.0,0.0625]
[1723386315083,0.50998892,60663.0,60662.0,0.0625]
[1723386315487,0.50998892,60663.0,60657.0,0.0625]
[1723386315488,0.230796,60660.0,60657.0,0.0625]
[1723386315689,0.16381492,60659.0,60657.0,0.0625]
[1723386315894,0.115401,60658.0,60657.0,0.0625]
[1723386316115,0.115407,60655.0,60651.0,0.1519]
[1723386316316,0.39461692,60658.0,60651.0,0.1519]
[1723386316317,0.16381492,60654.0,60651.0,0.267313]
[1723386317568,0.115412,60652.0,60651.0,0.1429]
[1723386317746,0.115412,60652.0,60651.0,0.0625]
[1723386318805,0.27922392,60654.0,60651.0,0.0715]
[1723386318967,0.115411,60653.0,60651.0,0.0715]
[1723386319206,0.115411,60653.0,60651.0,0.0745]
[1723386319207,0.27922592,60653.0,60651.0,0.0745]
[1723386320636,0.115412,60652.0,60651.0,0.0625]
[1723386321443,0.115412,60652.0,60651.0,0.0725]
[1723386321619,0.115412,60652.0,60651.0,0.0715]
[1723386321819,0.115412,60652.0,60651.0,0.0724141]
[1723386321984,0.115412,60652.0,60651.0,0.0039141]
[1723386321985,0.74087692,60652.0,60651.0,0.0039141]
[1723386323242,1.05780192,60652.0,60651.0,0.0039141]
[1723386324305,1.06980192,60652.0,60651.0,0.0039141]
[1723386324642,0.82897692,60652.0,60651.0,0.0039141]
[1723386324832,0.83897692,60652.0,60651.0,0.0009141]
[1723386325033,0.84297692,60652.0,60651.0,0.0009141]
[1723386325164,0.85297692,60652.0,60651.0,0.0009141]
[1723386325372,0.83897692,60652.0,60651.0,0.0009141]
[1723386325566,1.05780192,60652.0,60651.0,0.0009141]
[1723386325773,1.06080192,60652.0,60651.0,0.0009141]
[1723386325989,1.08380192,60652.0,60651.0,0.0009141]
[1723386326816,1.07080192,60652.0,60651.0,0.0009141]
[1723386327061,1.08480192,60652.0,60651.0,0.0009141]
[1723386327320,1.07180192,60652.0,60651.0,0.0009141]
[1723386327721,1.08580192,60652.0,60651.0,0.0009141]
[1723386327921,1.07180192,60652.0,60651.0,0.0009141]
[1723386328141,1.12601314,60652.0,60651.0,0.0009141]
[1723386328345,1.08580192,60652.0,60651.0,0.0009141]
[1723386328541,1.17534071,60652.0,60651.0,0.0009141]
[1723386328743,1.12601242,60652.0,60651.0,0.0009141]
[1723386329025,1.21234056,60652.0,60651.0,0.0009141]
[1723386329459,1.15813006,60652.0,60651.0,0.0009141]
[1723386329666,1.21235054,60652.0,60651.0,0.0009141]
[1723386330260,1.15813006,60652.0,60651.0,0.0009141]
[1723386330490,1.16302158,60652.0,60651.0,0.0009141]
[1723386330967,1.15812622,60652.0,60651.0,0.0009141]
[1723386331145,1.16302347,60652.0,60651.0,0.0009141]
[1723386331346,1.18279679,60652.0,60651.0,0.0009141]
[1723386331496,1.11980192,60652.0,60651.0,0.0009141]
[1723386331870,1.10580192,60652.0,60651.0,0.0009141]
[1723386332171,1.25985455,60652.0,60651.0,0.0009141]
[1723386332378,2.09045803,60652.0,60651.0,0.0009141]
[1723386332517,2.25770619,60652.0,60651.0,0.0009141]
[1723386333001,2.26726069,60652.0,60651.0,0.0009141]
[1723386333160,2.26726357,60652.0,60651.0,0.0009141]
[1723386333937,1.72237502,60652.0,60651.0,0.0009141]
[1723386334320,1.7412805,60652.0,60651.0,0.0009141]
[1723386334522,1.86461501,60652.0,60651.0,0.0009141]
[1723386334935,1.71137408,60652.0,60651.0,0.0009141]
[1723386335084,1.62790447,60652.0,60651.0,0.0009141]
[1723386335449,1.54902458,60652.0,60651.0,0.0009141]
[1723386335845,1.46292458,60652.0,60651.0,0.0009141]
[1723386336067,1.38891766,60652.0,60651.0,0.0009141]
[1723386336254,1.48758256,60652.0,60651.0,0.0009141]
[1723386336455,1.49758256,60652.0,60651.0,0.0009141]
[1723386336774,1.47293039,60652.0,60651.0,0.0009141]
[1723386337001,1.48760131,60652.0,60651.0,0.0009141]
[1723386337538,1.47293422,60652.0,60651.0,0.0009141]
[1723386337659,1.49760131,60652.0,60651.0,0.0009141]
[1723386337860,1.56281687,60652.0,60651.0,0.0009141]
[1723386339164,2.49428292,60652.0,60651.0,0.0009141]
[1723386340406,2.61762115,60652.0,60651.0,0.0009141]
[1723386340605,2.49428292,60652.0,60651.0,0.0009141]
[1723386340812,0.887712,60650.0,60649.0,0.035209]
[1723386341167,0.678017,60646.0,60645.0,0.000913]
[1723386341387,2.55073696,60646.0,60645.0,0.000913]
[1723386341575,2.52570851,60646.0,60645.0,0.000913]
[1723386341866,2.67373696,60646.0,60645.0,0.000913]
[1723386342269,0.346396,60624.0,60623.0,0.0651]
[1723386342468,0.51021092,60624.0,60623.0,0.0651]
[1723386342673,0.74114192,60624.0,60623.0,0.0651]
[1723386343507,0.74114192,60624.0,60623.0,0.0449]
[1723386344246,0.17102845,60646.0,60624.0,0.0817]
[1723386344247,0.14932553,60636.0,60624.0,0.0817]
[1723386344452,0.09865106,60640.0,60631.0,0.009]
[1723386344453,0.230894,60634.0,60631.0,0.009]
[1723386344693,0.16381492,60633.0,60632.0,0.0817]
[1723386345719,0.243888,60636.0,60632.0,0.0817]
[1723386345720,0.128444,60636.0,60632.0,0.0817]
[1723386345924,0.115445,60635.0,60634.0,0.009]
[1723386346083,0.115446,60634.0,60633.0,0.0817]
[1723386346479,0.346339,60634.0,60633.0,0.1468]
[1723386346691,0.357339,60634.0,60633.0,0.1468]
[1723386347068,0.346339,60634.0,60633.0,0.1468]
[1723386347493,0.357339,60634.0,60633.0,0.1468]
[1723386347699,0.75204692,60634.0,60633.0,0.1468]
[1723386349052,0.76304692,60634.0,60633.0,0.1468]
[1723386350356,0.76304692,60634.0,60633.0,0.0651]
[1723386350605,0.99393992,60634.0,60633.0,0.0651]
[1723386351003,0.346356,60631.0,60630.0,0.0636]
[1723386351146,0.346356,60631.0,60624.0,0.0099141]
[1723386351147,0.346374,60628.0,60627.0,0.0833]
[1723386351349,0.51018892,60628.0,60627.0,0.0833]
[1723386351586,0.74110492,60628.0,60627.0,0.09417109]
[1723386351975,0.74110492,60628.0,60627.0,0.0833]
[1723386351976,0.51018892,60628.0,60627.0,0.0833]
[1723386352450,0.51418892,60628.0,60627.0,0.0833]
[1723386352628,0.51418892,60628.0,60627.0,0.09419833]
[1723386353442,0.51818892,60628.0,60627.0,0.09419833]
[1723386354440,0.51818892,60628.0,60627.0,0.0833]
[1723386355053,0.51818892,60628.0,60627.0,0.09419833]
[1723386356434,0.51818892,60628.0,60627.0,0.0833]
[1723386357180,0.51818892,60628.0,60626.0,0.0636]
[1723386357181,0.34638,60627.0,60626.0,0.0636]
[1723386357426,0.51019492,60627.0,60626.0,0.0636]
[1723386357610,0.74111492,60627.0,60626.0,0.0636]
[1723386358785,0.74411492,60627.0,60626.0,0.0636]
[1723386359990,0.74711492,60627.0,60626.0,0.0636]
[1723386360443,0.74711492,60627.0,60624.0,0.0009141]
[1723386360444,0.34639,60625.0,60624.0,0.0009141]
[1723386360578,0.51020492,60625.0,60624.0,0.0009141]
[1723386360811,0.74113192,60625.0,60624.0,0.0009141]
[1723386361283,0.97205892,60625.0,60624.0,0.0009141]
[1723386361427,0.74113192,60625.0,60624.0,0.0009141]
[1723386361631,1.00605892,60625.0,60624.0,0.0009141]
[1723386361832,1.00705892,60625.0,60624.0,0.0009141]
[1723386362820,0.16581492,60625.0,60624.0,0.1478141]
[1723386363027,0.2085976,60633.0,60624.0,0.1478141]
[1723386363028,0.0492988,60637.0,60626.0,0.115461]
[1723386363230,0.115454,60630.0,60629.0,0.009]
[1723386363433,0.16381492,60630.0,60629.0,0.009]
[1723386363629,0.16381492,60630.0,60629.0,0.01642284]
[1723386363901,0.16381492,60630.0,60629.0,0.16332284]
[1723386364346,0.27926892,60630.0,60629.0,0.15432284]
[1723386364796,0.29226892,60630.0,60629.0,0.15432284]
[1723386364934,0.27926892,60630.0,60629.0,0.15432284]
[1723386365139,0.16681492,60630.0,60629.0,0.16332284]
[1723386365338,0.003,60630.0,60629.0,0.50969084]
[1723386365770,0.003,60630.0,60629.0,0.50069084]
[1723386366172,0.003,60630.0,60629.0,0.63767196]
[1723386366373,0.006,60630.0,60629.0,0.63767196]
[1723386366573,0.003,60630.0,60629.0,0.50069084]
[1723386366777,0.003,60630.0,60629.0,0.63767219]
[1723386367183,0.115447,60634.0,60629.0,0.50069084]
[1723386367536,0.346339,60634.0,60630.0,0.009]
[1723386367848,0.115451,60632.0,60630.0,0.009]
[1723386367978,0.115451,60632.0,60631.0,0.00742062]
[1723386368182,0.11525247,60632.0,60631.0,0.00742062]
[1723386368384,0.230896,60634.0,60630.0,0.009]
[1723386368610,0.115451,60632.0,60631.0,0.00742062]
[1723386368829,0.27926592,60632.0,60631.0,0.00742062]
[1723386370115,0.51016692,60632.0,60631.0,0.00742062]
[1723386370289,0.51516692,60632.0,60631.0,0.00742062]
[1723386370494,0.51016692,60632.0,60630.0,0.009]
[1723386370691,0.16381492,60631.0,60630.0,0.009]
[1723386371188,0.16381492,60631.0,60629.0,0.1469]
[1723386372597,0.115454,60630.0,60629.0,0.1469]
[1723386372828,0.27926692,60631.0,60630.0,0.009]
[1723386373094,0.16464592,60631.0,60630.0,0.009]
[1723386373348,0.16864592,60631.0,60630.0,0.009]
[1723386373584,0.28409792,60631.0,60629.0,0.1469]
[1723386373822,0.28409792,60631.0,60630.0,0.009]
[1723386373823,0.28009792,60631.0,60630.0,0.009]
[1723386374039,0.000831,60631.0,60630.0,0.124454]
[1723386374262,0.000831,60631.0,60630.0,0.494562]
[1723386374525,0.004831,60631.0,60630.0,0.494562]
[1723386374781,0.008831,60631.0,60630.0,0.63154266]
[1723386375031,0.008831,60631.0,60630.0,0.62254266]
[1723386375268,0.008831,60631.0,60630.0,0.62253844]
[1723386376175,0.004831,60631.0,60630.0,0.62253844]
[1723386376420,0.005831,60631.0,60630.0,0.62253844]
[1723386376640,0.001831,60631.0,60630.0,0.62253844]
[1723386377086,0.002831,60631.0,60630.0,0.62253844]
[1723386378454,0.002831,60631.0,60630.0,0.85344575]
[1723386378886,0.002831,60631.0,60630.0,0.63153775]
[1723386379054,0.002831,60631.0,60630.0,0.62253775]